bitfinex-derivatives/quotes_ETHF0:USTF0_20250727
["timestamp","ask_amount","ask_price","bid_price","bid_amount"]
[1753590434598,1.47275,3776.1,3776.0,1.7793]
[1753590434800,22.49675,3776.1,3776.0,1.7793]
[1753590434999,22.99425,3776.1,3776.0,1.7793]
[1753590435198,23.14385,3776.1,3776.0,1.7793]
[1753590445603,23.14385,3776.1,3776.0,1.3101]
[1753590446805,23.14385,3776.1,3776.0,1.7793]
[1753590449103,23.14385,3776.1,3776.0,1.3101]
[1753590450706,23.14385,3776.1,3776.0,1.7331]
[1753590454405,23.14385,3776.1,3776.0,0.3071]
[1753590454603,2.09958,3775.9,3775.8,0.621]
[1753590454910,23.10358,3775.9,3775.8,0.3113]
[1753590455212,2.09961,3775.7,3775.6,0.621]
[1753590455512,23.10361,3775.7,3775.6,0.621]
[1753590457112,2.09965,3775.4,3775.3,1.7406]
[1753590457313,23.11065,3775.4,3775.3,1.7406]
[1753590466232,22.95285,3775.4,3775.3,1.7406]
[1753590466826,21.53155,3775.4,3775.3,1.7406]
[1753590467232,21.53155,3775.4,3775.3,2.27017]
[1753590467427,21.53155,3775.4,3775.3,1.7406]
[1753590468534,22.16505,3775.4,3775.3,1.7406]
[1753590472335,23.10165,3775.4,3775.3,1.7406]
[1753590473939,23.10165,3775.4,3775.3,2.27017]
[1753590474131,23.10165,3775.4,3775.3,1.7406]
[1753590474537,23.10165,3775.4,3775.3,2.27017]
[1753590475738,23.10165,3775.4,3775.3,1.7406]
[1753590475934,23.10165,3775.4,3775.3,2.27017]
[1753590476135,22.5721,3775.4,3775.3,2.27017]
[1753590478540,21.002,3775.4,3775.3,2.27017]
[1753590478730,0.4249,3775.8,3775.6,0.289]
[1753590478930,3.2078,3775.9,3775.8,1.2075]
[1753590479241,24.2038,3775.9,3775.8,2.2322]
[1753590480241,24.8317,3775.9,3775.8,2.2322]
[1753590480435,21.9211,3775.9,3775.8,2.2322]
[1753590480838,21.199,3775.9,3775.8,2.2322]
[1753590481141,21.6239,3775.9,3775.8,2.2322]
[1753590481640,20.996,3775.9,3775.8,2.2322]
[1753590485041,21.6239,3775.9,3775.8,2.2322]
[1753590486444,22.3666,3775.9,3775.8,2.2322]
[1753590488046,1.3706,3775.9,3775.8,2.2322]
[1753590488247,22.3646,3775.9,3775.8,2.2322]
[1753590488747,22.5623,3775.9,3775.8,2.2322]
[1753590488947,23.09178,3775.9,3775.8,1.7027]
[1753590489649,22.5623,3775.9,3775.8,1.7027]
[1753590489845,23.09178,3775.9,3775.8,1.7027]
[1753590490350,2.09782,3775.6,3775.5,1.4035]
[1753590490543,23.09182,3775.6,3775.5,1.4035]
[1753590490744,23.09182,3775.6,3775.5,1.7027]
[1753590492350,22.5623,3775.6,3775.5,2.23224]
[1753590493951,23.09182,3775.6,3775.5,2.23224]
[1753590494152,2.09782,3775.6,3775.5,2.23224]
[1753590494350,23.09182,3775.6,3775.5,2.23224]
[1753590494852,23.09182,3775.6,3775.5,5.44004]
[1753590495048,23.09182,3775.6,3775.5,2.23224]
[1753590498956,23.09182,3775.6,3775.5,1.7027]
[1753590499954,23.09182,3775.6,3775.5,2.23224]
[1753590500155,22.5623,3775.6,3775.5,2.23224]
[1753590500351,23.09182,3775.6,3775.5,2.23224]
[1753590501851,23.09182,3775.6,3775.5,5.44004]
[1753590502053,23.09182,3775.6,3775.5,2.23224]
[1753590502451,23.09182,3775.6,3775.5,5.44004]
[1753590502651,23.09182,3775.6,3775.5,1.7027]
[1753590505654,22.5623,3775.6,3775.5,1.7027]
[1753590506757,22.5623,3775.6,3775.5,2.23224]
[1753590508357,22.5623,3775.6,3775.5,1.7027]
[1753590508560,22.5623,3775.6,3775.5,2.23224]
[1753590508758,22.5623,3775.6,3775.5,1.7027]
[1753590509158,23.09182,3775.6,3775.5,1.7027]
[1753590509553,0.3387,3775.3,3775.2,0.3131]
[1753590509760,23.09617,3775.3,3775.2,0.3131]
[1753590509957,22.5666,3775.3,3775.2,0.3131]
[1753590510259,22.5666,3775.3,3775.2,2.31308]
[1753590510460,23.09617,3775.3,3775.2,1.7835]
[1753590511260,23.09617,3775.3,3775.2,2.31308]
[1753590513159,22.5666,3775.3,3775.2,2.31308]
[1753590513366,0.9227,3775.6,3775.5,2.31303]
[1753590513566,21.6318,3775.6,3775.5,2.31303]
[1753590515162,0.6388,3775.6,3775.5,2.31303]
[1753590515363,21.6318,3775.6,3775.5,2.31303]
[1753590515767,0.6388,3775.6,3775.5,2.31303]
[1753590515971,21.6318,3775.6,3775.5,2.31303]
[1753590517472,22.2279,3775.6,3775.5,2.31303]
[1753590517763,22.5666,3775.6,3775.5,2.31303]
[1753590522067,22.5666,3775.6,3775.5,2.31304]
[1753590522867,23.09612,3775.6,3775.5,0.84264]
[1753590523169,1.5736,3775.3,3775.2,0.84267]
[1753590523368,22.5666,3775.3,3775.2,0.84267]
[1753590523664,23.09617,3775.3,3775.2,1.14447]
[1753590524064,22.5666,3775.3,3775.2,1.14447]
[1753590524263,22.5666,3775.3,3775.2,1.61117]
[1753590524470,22.5666,3775.3,3775.2,2.31307]
[1753590529075,22.5666,3775.3,3775.2,5.52087]
[1753590529675,22.5666,3775.3,3775.2,2.31307]
[1753590531873,23.09617,3775.3,3775.2,2.31307]
[1753590532882,23.09517,3775.3,3775.2,2.31307]
[1753590533676,22.5656,3775.3,3775.2,2.31307]
[1753590534078,23.09517,3775.3,3775.2,2.31307]
[1753590535480,23.09517,3775.3,3775.2,1.7835]
[1753590535778,22.5656,3775.3,3775.2,1.7835]
[1753590536077,23.09517,3775.3,3775.2,1.7835]
[1753590537076,23.09517,3775.3,3775.2,0.6149]
[1753590537469,2.14369,3775.1,3775.0,0.2867]
[1753590537676,2.14372,3774.9,3774.8,0.5995]
[1753590537877,23.13572,3774.9,3774.8,0.2867]
[1753590538880,23.13572,3774.9,3774.8,0.5995]
[1753590540784,23.13572,3774.9,3774.8,2.24914]
[1753590540972,22.6061,3774.9,3774.8,2.24914]
[1753590541983,23.13572,3774.9,3774.8,2.24914]
[1753590542982,22.6061,3774.9,3774.8,2.24914]
[1753590543186,1.6141,3774.9,3774.8,2.24914]
[1753590543382,22.6071,3774.9,3774.8,2.24914]
[1753590544383,22.6071,3774.9,3774.8,1.7195]
[1753590544679,23.13672,3774.9,3774.8,1.7195]
[1753590544884,21.6547,3774.9,3774.8,1.7195]
[1753590545176,3.2078,3775.2,3774.4,3.2078]
[1753590545177,3.73739,3775.2,3774.9,0.52961]
[1753590545384,4.53439,3775.2,3775.1,1.7195]
[1753590545584,25.52739,3775.2,3775.1,1.7195]
[1753590545780,25.99649,3775.2,3775.1,2.24909]
[1753590545986,22.48608,3775.2,3775.1,2.24909]
[1753590546382,21.9565,3775.2,3775.1,2.24909]
[1753590546680,21.1856,3775.2,3775.1,2.24909]
[1753590546875,21.71518,3775.2,3775.1,2.24909]
[1753590547084,22.18428,3775.2,3775.1,2.24909]
[1753590547381,22.18428,3775.2,3775.1,1.7195]
[1753590547687,23.13688,3775.2,3775.1,1.7195]
[1753590548887,22.18428,3775.2,3775.1,1.7195]
[1753590549191,23.13688,3775.2,3775.1,1.7195]
[1753590549488,23.13688,3775.2,3775.1,2.24909]
[1753590550689,22.6073,3775.2,3775.1,2.24909]
[1753590550882,23.13688,3775.2,3775.1,2.24909]
[1753590551284,23.13688,3775.2,3775.1,1.7195]
[1753590551689,23.13688,3775.2,3775.1,2.24909]
[1753590552595,22.6073,3775.2,3775.1,2.24909]
[1753590552891,22.4573,3775.2,3775.1,2.24909]
[1753590553294,0.6617,3775.4,3775.3,2.24907]
[1753590553493,21.6537,3775.4,3775.3,2.24907]
[1753590553992,22.2581,3775.4,3775.3,2.24907]
[1753590554494,22.4081,3775.4,3775.3,2.24907]
[1753590558099,1.4161,3775.4,3775.3,2.24907]
[1753590558295,22.4081,3775.4,3775.3,2.24907]
[1753590558598,22.93765,3775.4,3775.3,2.24907]
[1753590559394,22.4081,3775.4,3775.3,2.24907]
[1753590561796,21.9545,3775.4,3775.3,2.24907]
[1753590563499,22.2571,3775.4,3775.3,2.24907]
[1753590564201,22.6053,3775.4,3775.3,2.24907]
[1753590567202,1.6143,3775.4,3775.3,2.24907]
[1753590567401,22.6053,3775.4,3775.3,2.24907]
[1753590568596,1.6143,3775.4,3775.3,2.24907]
[1753590568801,22.6053,3775.4,3775.3,2.24907]
[1753590569703,23.13485,3775.4,3775.3,2.24907]
[1753590569904,23.13385,3775.4,3775.3,2.24907]
[1753590570092,22.6043,3775.4,3775.3,2.24907]
[1753590571697,0.9351,3775.6,3775.5,1.7762]
[1753590572001,0.9351,3775.6,3774.5,2.6484]
[1753590572002,0.6276,3775.9,3775.8,2.3057]
[1753590572202,21.6176,3775.9,3775.8,2.3057]
[1753590572599,22.3645,3775.9,3775.8,2.3057]
[1753590572899,22.5637,3775.9,3775.8,2.3057]
[1753590578105,1.5737,3775.9,3775.8,2.3057]
[1753590578302,22.5607,3775.9,3775.8,2.3057]
[1753590585312,23.09018,3775.9,3775.8,2.3057]
[1753590585516,22.5607,3775.9,3775.8,2.3057]
[1753590586918,23.09018,3775.9,3775.8,1.7762]
[1753590588016,23.09018,3775.9,3775.8,2.3057]
[1753590588320,23.09018,3775.9,3775.8,1.7762]
[1753590588619,1.3783,3775.6,3775.5,1.7762]
[1753590588813,1.5737,3775.6,3775.5,1.7762]
[1753590589013,2.10322,3775.6,3775.5,0.8074]
[1753590589613,2.10322,3775.6,3775.5,1.7762]
[1753590601735,1.5737,3775.6,3775.5,2.30574]
[1753590603530,0.9351,3775.6,3775.5,2.30574]
[1753590603732,3.4001,3776.1,3776.0,0.7117]
[1753590603927,24.8102,3776.1,3776.0,2.26817]
[1753590604332,0.9317,3776.5,3776.4,0.52941]
[1753590604529,0.6194,3776.5,3776.4,2.26811]
[1753590604729,0.1501,3776.8,3776.5,0.7117]
[1753590604928,21.4101,3776.9,3776.8,2.26806]
[1753590605130,22.19722994,3776.9,3776.8,2.26806]
[1753590605528,22.38952994,3776.9,3776.8,2.26806]
[1753590605730,1.40652994,3776.9,3776.8,2.26806]
[1753590606035,0.78712994,3776.9,3776.8,2.26806]
[1753590607428,21.9303,3777.1,3777.0,1.24103]
[1753590607630,22.7166978,3777.1,3777.0,2.26803]
[1753590608032,23.3478978,3777.1,3777.0,2.26803]
[1753590608831,23.3458978,3777.1,3777.0,1.7387]
[1753590609235,23.3458978,3777.1,3777.0,2.26803]
[1753590609738,22.5595,3777.1,3777.0,2.26803]
[1753590612535,23.08881,3777.1,3777.0,2.26803]
[1753590612737,22.5595,3777.1,3777.0,2.26803]
[1753590613234,1.5795,3776.9,3776.6,0.287]
[1753590613538,20.98,3777.1,3776.6,0.287]
[1753590613539,1.5795,3776.7,3776.6,1.50978]
[1753590613739,1.5795,3776.7,3776.6,2.26808]
[1753590617545,2.10887,3776.7,3776.6,2.26808]
[1753590618044,1.5795,3776.7,3776.6,2.26808]
[1753590619350,0.7394,3776.7,3776.6,2.26808]
[1753590619547,22.5575,3776.8,3776.7,2.26807]
[1753590620552,1.5795,3776.8,3776.7,2.26807]
[1753590620752,22.5555,3776.8,3776.7,2.26807]
[1753590621252,4.4331,3777.1,3777.0,2.26803]
[1753590621449,21.9077,3777.1,3777.0,2.26803]
[1753590621752,21.1683,3777.1,3777.0,2.26803]
[1753590622648,0.1923,3777.1,3777.0,2.26803]
[1753590622951,21.1683,3777.1,3777.0,2.26803]
[1753590623454,0.6194,3777.1,3777.0,2.26803]
[1753590623654,21.5944,3777.1,3777.0,2.26803]
[1753590623955,22.5545,3777.1,3777.0,2.26803]
[1753590624949,0.7087,3776.8,3776.7,0.52937]
[1753590625149,22.5545,3776.8,3776.7,0.82197]
[1753590625453,22.5545,3776.8,3776.7,1.95717]
[1753590625753,22.5545,3776.8,3776.7,2.26807]
[1753590629258,2.10886,3776.8,3776.7,1.7387]
[1753590629453,1.5795,3776.8,3776.7,2.26807]
[1753590629660,23.08386,3776.8,3776.7,2.26807]
[1753590630257,22.5545,3776.8,3776.7,2.26807]
[1753590631754,22.5545,3776.8,3776.7,0.2926]
[1753590631956,22.5545,3776.8,3776.7,0.82197]
[1753590632557,22.5545,3776.8,3776.7,1.10507]
[1753590633459,22.5545,3776.8,3776.7,1.93187]
[1753590633655,22.5545,3776.8,3776.7,2.23377]
[1753590633856,22.5535,3776.8,3776.7,2.23377]
[1753590634954,23.08286,3776.8,3776.7,1.50897]
[1753590635153,1.1811,3776.5,3776.4,0.8241]
[1753590635350,22.5574,3776.5,3776.4,0.8241]
[1753590635762,23.0868,3776.5,3776.4,0.8241]
[1753590636154,23.0868,3776.5,3776.4,0.2947]
[1753590636457,22.5574,3776.5,3776.4,0.82411]
[1753590636859,22.5574,3776.5,3776.4,1.93401]
[1753590637164,22.5574,3776.5,3776.4,2.23591]
[1753590639960,0.1494,3776.2,3776.1,0.2947]
[1753590640261,22.5584,3776.2,3776.1,0.2947]
[1753590640463,22.5584,3776.2,3776.1,0.82415]
[1753590640662,23.08784,3776.2,3776.1,0.82415]
[1753590640963,23.08784,3776.2,3776.1,1.10725]
[1753590641164,23.08784,3776.2,3776.1,0.5778]
[1753590641665,0.52948,3775.9,3775.8,0.2831]
[1753590641861,1.5834,3775.7,3775.6,1.7065]
[1753590642066,22.5584,3775.7,3775.6,1.7065]
[1753590642564,23.08791,3775.7,3775.6,1.7065]
[1753590642860,2.11294,3775.5,3775.4,0.2831]
[1753590643064,1.5834,3775.3,3775.2,1.0007]
[1753590643363,22.5584,3775.3,3775.2,2.23608]
[1753590644664,22.5584,3775.3,3775.2,1.7065]
[1753590645264,23.08797,3775.3,3775.2,1.7065]
[1753590646165,23.08897,3775.3,3775.2,1.7065]
[1753590653976,1.0986,3775.9,3775.8,0.7058]
[1753590654271,21.6421,3775.9,3775.8,1.7065]
[1753590654469,21.71038,3775.9,3775.8,1.7065]
[1753590654669,21.1809,3775.9,3775.8,1.7065]
[1753590654876,21.1809,3775.9,3775.8,2.236]
[1753590655175,21.6421,3775.9,3775.8,2.236]
[1753590655679,22.17158,3775.9,3775.8,2.236]
[1753590655974,22.17158,3775.9,3775.8,1.7065]
[1753590656372,1.91248,3775.9,3775.8,1.7065]
[1753590656572,22.89148,3775.9,3775.8,1.7065]
[1753590657979,23.09188,3775.9,3775.8,1.7065]
[1753590660586,22.5624,3775.9,3775.8,2.236]
[1753590661278,23.09188,3775.9,3775.8,1.7065]
[1753590661685,23.09188,3775.9,3775.8,2.236]
[1753590662081,22.1286,3775.9,3775.8,2.236]
[1753590662386,21.9282,3775.9,3775.8,2.236]
[1753590662792,0.9492,3775.9,3775.8,2.236]
[1753590662981,22.45668,3775.9,3775.8,2.236]
[1753590663490,22.74148,3775.9,3775.8,2.236]
[1753590663786,22.89148,3775.9,3775.8,2.236]
[1753590664090,23.08058,3775.9,3775.8,2.236]
[1753590664289,22.5511,3775.9,3775.8,2.236]
[1753590664487,23.08058,3775.9,3775.8,2.236]
[1753590664686,22.5511,3775.9,3775.8,2.236]
[1753590665090,1.4231,3775.9,3775.8,2.236]
[1753590665292,21.9272,3775.9,3775.8,2.236]
[1753590665590,1.4521,3776.5,3776.4,1.20291]
[1753590665787,22.4301,3776.5,3776.4,2.23001]
[1753590666285,22.5801,3776.5,3776.4,2.23001]
[1753590666485,23.1095,3776.5,3776.4,2.23001]
[1753590668492,23.1095,3776.5,3776.4,1.7006]
[1753590668688,1.38186,3776.1,3776.0,1.2621]
[1753590668886,22.35886,3776.1,3776.0,0.2989]
[1753590669390,23.10856,3776.1,3776.0,1.31297]
[1753590669690,23.10856,3776.1,3776.0,1.75147]
[1753590669889,23.10856,3776.1,3776.0,1.94807]
[1753590670085,22.5791,3776.1,3776.0,2.23007]
[1753590671393,23.10855,3776.1,3776.0,1.7006]
[1753590673584,0.52948,3775.9,3775.8,0.2897]
[1753590673790,23.10858,3775.9,3775.8,1.4186]
[1753590675296,23.10858,3775.9,3775.8,1.7006]
[1753590675997,23.10858,3775.9,3775.8,2.2301]
[1753590676996,22.67378,3775.9,3775.8,2.2301]
[1753590677200,22.48468,3775.9,3775.8,2.2301]
[1753590677400,22.48468,3775.9,3775.8,1.7006]
[1753590677695,22.48468,3775.9,3775.8,2.2301]
[1753590678797,22.48468,3775.9,3775.8,1.7006]
[1753590679999,22.48468,3775.9,3775.8,2.2301]
[1753590681293,21.1785,3775.9,3775.8,2.2301]
[1753590681595,0.99435,3776.2,3775.8,0.6735]
[1753590681797,0.52945,3776.2,3776.1,1.7006]
[1753590681997,20.976,3776.2,3776.1,2.23005]
[1753590682196,3.2078,3776.3,3775.7,1.32377]
[1753590682197,1.19579,3776.6,3776.5,0.6735]
[1753590682393,20.976,3776.6,3776.5,2.23]
[1753590683189,1.19577,3776.7,3776.6,1.4017]
[1753590683392,22.30347,3776.7,3776.6,0.6735]
[1753590683590,22.30347,3776.7,3776.6,1.7006]
[1753590683998,22.76837,3776.7,3776.6,1.7006]
[1753590684199,22.91867,3776.7,3776.6,1.7006]
[1753590684903,22.3893,3776.7,3776.6,2.22998]
[1753590685297,22.91867,3776.7,3776.6,2.22998]
[1753590685898,22.3893,3776.7,3776.6,2.22998]
[1753590686801,22.91767,3776.7,3776.6,1.7006]
[1753590686996,22.3883,3776.7,3776.6,2.22998]
[1753590687803,23.10677,3776.7,3776.6,1.7006]
[1753590688598,22.5774,3776.7,3776.6,2.22998]
[1753590689500,1.4446,3777.0,3776.9,2.27634]
[1753590689805,22.5685,3777.0,3776.9,2.27634]
[1753590692600,22.4186,3777.0,3776.9,2.27634]
[1753590692806,21.9161,3777.0,3776.9,2.27634]
[1753590693903,21.4662,3777.0,3776.9,2.27634]
[1753590694500,21.9161,3777.0,3776.9,2.27634]
[1753590697408,0.9431,3777.0,3776.9,2.27634]
[1753590697603,21.9151,3777.0,3776.9,2.27634]
[1753590699115,22.2247,3777.0,3776.9,2.27634]
[1753590700009,22.3746,3777.0,3776.9,2.27634]
[1753590701510,22.5665,3777.0,3776.9,2.27634]
[1753590705424,0.9431,3777.0,3776.9,2.27634]
[1753590705616,21.6213,3777.0,3776.9,2.27634]
[1753590708019,22.2237,3777.0,3776.9,2.27634]
[1753590709516,22.3736,3777.0,3776.9,2.27634]
[1753590710120,22.5655,3777.0,3776.9,2.27634]
[1753590713927,22.5655,3777.0,3776.9,0.52934]
[1753590716730,22.5655,3777.0,3776.9,0.83904]
[1753590718927,22.5655,3777.0,3776.9,1.15154]
[1753590721540,22.5655,3777.0,3776.9,1.61694]
[1753590722431,22.5655,3777.0,3776.9,1.81664]
[1753590722832,22.5655,3777.0,3776.9,2.01304]
[1753590725142,22.5655,3777.0,3776.9,2.31304]
[1753590726638,22.2237,3777.0,3776.9,2.31304]
[1753590727136,22.3735,3777.0,3776.9,2.31304]
[1753590727334,22.5646,3777.0,3776.9,2.31304]
[1753590735241,3.73706,3777.5,3776.9,2.31304]
[1753590735242,1.2558,3777.3,3777.2,2.2944]
[1753590735439,22.2228,3777.3,3777.2,2.2944]
[1753590735742,22.3726,3777.3,3777.2,2.2944]
[1753590737440,3.2078,3777.5,3777.4,0.52927]
[1753590737644,24.8376,3777.5,3777.4,2.29437]
[1753590737843,21.6298,3777.5,3777.4,2.29437]
[1753590738343,22.3726,3777.5,3777.4,2.29437]
[1753590739645,22.5637,3777.5,3777.4,2.29437]
[1753590740041,21.6627,3777.5,3776.7,3.2078]
[1753590740342,1.5967,3777.4,3777.3,1.79469]
[1753590740745,1.5967,3777.4,3777.3,1.99439]
[1753590740943,2.12597,3777.4,3777.0,0.7779]
[1753590741144,1.5967,3777.2,3777.1,1.30721]
[1753590741344,22.5617,3777.2,3777.1,2.00331]
[1753590741543,22.5617,3777.2,3777.1,1.69081]
[1753590741844,22.5617,3777.2,3777.1,2.29441]
[1753590743048,22.5617,3777.2,3777.1,1.7651]
[1753590743237,22.5617,3777.2,3777.1,2.29441]
[1753590743643,22.5617,3777.2,3777.1,1.7651]
[1753590743948,22.5617,3777.2,3777.1,2.29441]
[1753590748951,0.9443,3777.6,3777.5,1.22986]
[1753590749151,21.9083,3777.6,3777.5,2.27286]
[1753590749350,22.1108,3777.6,3777.5,2.27286]
[1753590749544,22.5716,3777.6,3777.5,2.27286]
[1753590752853,1.6076,3777.6,3777.5,2.27286]
[1753590753253,22.5716,3777.6,3777.5,2.27286]
[1753590754355,0.961,3777.6,3777.5,2.27286]
[1753590754556,21.925,3777.6,3777.5,2.27286]
[1753590754757,22.5716,3777.6,3777.5,2.27286]
[1753590756248,0.72921,3777.9,3777.8,0.7006]
[1753590756249,0.2,3777.9,3777.8,0.7006]
[1753590756453,0.2,3777.9,3777.8,2.27282]
[1753590756653,21.163,3777.9,3777.8,2.27282]
[1753590757855,0.2,3777.9,3777.8,2.27282]
[1753590758461,0.15,3777.9,3777.8,2.27282]
[1753590759261,0.15,3777.9,3777.8,5.48062]
[1753590759666,1.2553,3779.0,3778.9,1.22966]
[1753590759856,22.2173,3779.0,3778.9,2.27266]
[1753590761762,21.1567,3779.0,3778.9,2.27266]
[1753590762260,21.6175,3779.0,3778.9,2.27266]
[1753590764268,21.1567,3779.0,3778.9,2.27266]
[1753590764757,0.4608,3779.3,3778.6,3.2078]
[1753590764758,0.1947,3779.3,3779.2,1.03772]
[1753590764962,0.4608,3779.4,3779.3,1.53621]
[1753590765160,21.4198,3779.4,3779.3,1.53621]
[1753590765356,21.6145,3779.4,3779.3,2.27261]
[1753590765966,22.5666,3779.4,3779.3,0.2888]
[1753590766162,1.0996,3779.3,3779.2,0.2888]
[1753590766366,1.4578,3779.3,3779.2,0.2888]
[1753590766673,1.4578,3779.3,3779.2,0.5954]
[1753590766866,1.6076,3779.3,3779.2,0.5954]
[1753590767368,1.6076,3779.3,3779.2,1.12442]
[1753590767562,3.708,3779.5,3779.4,1.22959]
[1753590767763,0.5002,3779.5,3779.4,2.27259]
[1753590767964,0.961,3779.5,3779.4,2.27259]
[1753590768369,22.2123,3779.7,3779.6,1.98376]
[1753590768566,21.6125,3779.7,3779.6,2.27256]
[1753590768774,22.5646,3779.7,3779.6,2.27256]
[1753590769863,22.5646,3779.7,3779.6,0.2888]
[1753590770167,0.9049,3779.6,3779.5,0.52898]
[1753590770364,0.7027,3779.6,3779.4,0.52899]
[1753590770667,1.6076,3779.5,3779.4,1.48139]
[1753590770857,22.5916,3779.5,3779.4,1.68349]
[1753590771062,22.5916,3779.5,3779.4,1.32259]
[1753590771860,0.7027,3779.3,3779.2,1.043]
[1753590772170,22.5906,3779.3,3779.2,1.97232]
[1753590772372,22.5906,3779.3,3779.2,2.27262]
[1753590772566,1.1635,3779.3,3779.2,2.27262]
[1753590772870,3.4025,3779.5,3779.4,2.27259]
[1753590773059,24.3845,3779.5,3779.4,2.27259]
[1753590773264,24.8453,3779.5,3779.4,2.27259]
[1753590774272,24.3845,3779.5,3779.4,2.27259]
[1753590774467,3.2078,3779.5,3779.4,2.27259]
[1753590774667,24.1878,3779.5,3779.4,2.27259]
[1753590775972,24.8433,3779.5,3779.4,2.27259]
[1753590776676,0.3947,3779.9,3779.8,2.27254]
[1753590776976,0.8555,3779.9,3779.8,2.27254]
[1753590777275,1.4553,3779.9,3779.8,2.27254]
[1753590778177,1.161,3779.9,3779.8,2.27254]
[1753590778476,0.2,3779.9,3779.8,2.27254]
[1753590780374,0.018,3780.3,3780.2,1.6946]
[1753590780763,0.018,3780.3,3780.2,2.22348]
[1753590783274,0.2095,3780.3,3780.2,2.22348]
[1753590783474,0.6392,3780.3,3780.2,2.22348]
[1753590784675,3.2078,3780.7,3780.6,0.52882]
[1753590784881,1.551,3780.7,3780.6,2.22342]
[1753590786474,1.4013,3780.7,3780.6,2.22342]
[1753590787081,1.551,3780.7,3780.6,2.22342]
[1753590787782,0.6212,3780.7,3780.6,2.22342]
[1753590789477,0.1915,3780.9,3780.8,2.2234]
[1753590790284,4.4107,3781.2,3781.1,2.22335]
[1753590790586,1.3526,3781.2,3781.1,2.22335]
[1753590790878,0.437,3781.6,3781.1,2.22335]
[1753590791071,0.9716,3781.6,3781.5,2.2233]
[1753590791277,0.6356,3781.8,3781.7,1.21737]
[1753590791471,1.3526,3781.8,3781.7,2.22327]
[1753590793080,1.551,3781.8,3781.7,0.52867]
[1753590793679,1.551,3781.7,3781.6,0.52868]
[1753590794183,1.551,3781.7,3781.6,2.22328]
[1753590794582,1.4013,3781.7,3781.6,2.22328]
[1753590794778,1.2653,3781.9,3781.8,0.83866]
[1753590794983,1.2653,3781.9,3781.8,1.21736]
[1753590795285,1.751,3781.9,3781.8,2.22326]
[1753590795975,1.751,3781.9,3781.8,1.79666]
[1753590797582,0.8843,3781.9,3781.5,0.4266]
[1753590797774,1.551,3781.8,3781.7,0.81637]
[1753590798286,1.551,3781.8,3781.7,2.22327]
[1753590800889,0.6212,3781.8,3781.7,2.22327]
[1753590801089,0.2,3781.9,3781.8,2.22326]
[1753590805788,1.114,3782.6,3782.5,1.21726]
[1753590805984,2.34781879,3782.6,3782.5,1.6946]
[1753590806384,2.34781879,3782.6,3782.5,2.22316]
[1753590807493,1.551,3782.6,3782.5,2.22316]
[1753590807691,1.551,3782.6,3782.5,1.6946]
[1753590807884,1.551,3782.6,3782.5,0.958]
[1753590808085,1.551,3782.6,3782.5,1.48656]
[1753590808282,2.34850004,3782.6,3782.5,1.48656]
[1753590808488,2.34850004,3782.6,3782.5,1.94336]
[1753590808692,2.34850004,3782.6,3782.5,2.24066]
[1753590809188,1.41870004,3782.6,3782.5,2.24066]
[1753590809393,1.6027,3782.9,3782.8,2.29782]
[1753590809594,2.40033273,3782.9,3782.8,2.29782]
[1753590810694,1.95353273,3782.9,3782.8,2.29782]
[1753590810898,1.75403273,3782.9,3782.8,2.29782]
[1753590811098,0.2061,3782.9,3782.8,2.29782]
[1753590811286,3.2078,3783.0,3782.9,0.5285]
[1753590811491,4.0051983,3783.0,3782.9,2.2978]
[1753590812299,0.6841,3783.3,3783.2,1.22126]
[1753590812595,1.77192019,3783.3,3783.2,2.29776]
[1753590812897,2.41822019,3783.3,3783.2,1.7693]
[1753590813194,2.41822019,3783.3,3783.2,2.29776]
[1753590814398,0.81552019,3783.3,3783.2,2.29776]
[1753590814699,0.018,3783.3,3783.2,2.29776]
[1753590815193,1.4715,3783.3,3783.2,2.29776]
[1753590815400,2.41832538,3783.3,3783.2,2.29776]
[1753590816195,1.6206,3783.3,3783.2,2.29776]
[1753590816691,1.6206,3783.3,3783.2,1.84096]
[1753590817188,1.6206,3783.3,3783.2,2.29776]
[1753590817592,1.6206,3783.3,3783.2,1.7693]
[1753590817998,1.6206,3783.3,3783.2,2.29776]
[1753590818991,0.018,3783.3,3783.2,2.29776]
[1753590819701,1.6206,3783.3,3783.2,1.7693]
[1753590820091,0.4467,3783.1,3783.0,0.83708]
[1753590820296,0.4467,3783.1,3782.9,0.3111]
[1753590820297,0.6959,3783.1,3782.9,0.3111]
[1753590820494,1.6026,3783.0,3782.9,1.1482]
[1753590821592,2.13109,3783.0,3782.9,0.3086]
[1753590821896,0.7576,3782.8,3782.5,0.6197]
[1753590822091,1.6026,3782.6,3782.5,0.3086]
[1753590822393,2.13114,3782.6,3782.5,0.3086]
[1753590822788,2.13114,3782.6,3782.5,0.6197]
[1753590822994,1.6026,3782.6,3782.5,1.7693]
[1753590823700,2.13114,3782.6,3782.5,0.3086]
[1753590824197,1.6026,3782.6,3782.5,2.29786]
[1753590824800,1.6026,3782.6,3782.5,1.7693]
[1753590825001,2.13114,3782.6,3782.5,1.7693]
[1753590825294,2.13114,3782.6,3782.5,1.3125]
[1753590826605,1.6026,3782.6,3782.5,1.84106]
[1753590826803,2.13114,3782.6,3782.5,1.3125]
[1753590827103,1.6026,3782.4,3782.3,2.00059]
[1753590827402,1.6026,3782.4,3782.3,2.29789]